fUST/lending_fUST_20250608
["ID","MTS","AMOUNT","RATE_DAILY","PERIOD"]
[364961619,1749357048349,-586.93,0.00019726,2]
[364961622,1749357048359,-440.0,0.00019726,2]
[364961624,1749357048368,-440.0,0.00019726,2]
[364961626,1749357048379,-440.0,0.00019726,2]
[364961628,1749357048388,-435.0764069,0.00019726,2]
[364961630,1749357048397,-168.66590516,0.00019726,2]
[364961632,1749357048407,-440.0,0.00019726,2]
[364961634,1749357048416,-440.0,0.00019726,2]
[364961636,1749357048426,-440.0,0.00019726,2]
[364961638,1749357048435,-1039.1,0.00019726,2]
[364961640,1749357048445,-365.73005752,0.00019726,2]
[364961642,1749357048456,-440.0,0.00019726,2]
[364961644,1749357048466,-440.0,0.00019726,2]
[364961646,1749357048475,-440.0,0.00019726,2]
[364961648,1749357048485,-440.0,0.00019726,2]
[364961650,1749357048495,-439.7734092,0.00019726,2]
[364961652,1749357048505,-440.0,0.00019726,2]
[364961654,1749357048514,-440.0,0.00019726,2]
[364961656,1749357048524,-440.0,0.00019726,2]
[364961658,1749357048533,-440.0,0.00019726,2]
[364961660,1749357048543,-440.0,0.00019726,2]
[364961662,1749357048553,-440.0,0.00019726,2]
[364961664,1749357048563,-440.0,0.00019726,2]
[364961667,1749357048573,-466.63768028,0.00019726,2]
[364961669,1749357048583,-440.0,0.00019726,2]
[364961671,1749357048593,-662.36,0.00019726,2]
[364961672,1749357048602,-316.50556625,0.00019726,2]
[364961675,1749357048612,-442.63411318,0.00019726,2]
[364961677,1749357048621,-440.0,0.00019726,2]
[364961679,1749357048632,-440.0,0.00019726,2]
[364961680,1749357048642,-440.0,0.00019726,2]
[364961683,1749357048651,-440.0,0.00019726,2]
[364961685,1749357048662,-440.0,0.00019726,2]
[364961687,1749357048671,-440.0,0.00019726,2]
[364961689,1749357048680,-440.0,0.00019726,2]
[364961691,1749357048690,-440.0,0.00019726,2]
[364961693,1749357048699,-583.1,0.00019726,2]
[364961695,1749357048708,-467.09119351,0.00019726,2]
[364961697,1749357048718,-446.08011707,0.00019726,2]
[364961699,1749357048730,-440.0,0.00019726,2]
[364961701,1749357048739,-278.81020269,0.00019726,2]
[364961703,1749357048749,-551.27300784,0.00019726,2]
[364961704,1749357048758,-440.0,0.00019726,2]
[364961707,1749357048768,-440.0,0.00019726,2]
[364961708,1749357048777,-440.0,0.00019726,2]
[364961710,1749357048786,-3144.93,0.00019726,2]
[364961713,1749357048796,-440.0,0.00019726,2]
[364961714,1749357048805,-440.0,0.00019726,2]
[364961717,1749357048815,-440.0,0.00019726,2]
[364961718,1749357048824,-372.41880344,0.00019726,2]
[364961720,1749357048834,-984.22,0.00019726,2]
[364961723,1749357048844,-846.87,0.00019726,2]
[364961725,1749357048853,-440.0,0.00019726,2]
[364961726,1749357048862,-229.21301967,0.00019726,2]
[364961728,1749357048871,-350.0,0.00019726,2]
[364961730,1749357048881,-440.0,0.00019726,2]
[364961733,1749357048891,-440.0,0.00019726,2]
[364961735,1749357048901,-528.69,0.00019726,2]
[364961737,1749357048910,-440.0,0.00019726,2]
[364961739,1749357048920,-440.0,0.00019726,2]
[364961741,1749357048929,-440.0,0.00019726,2]
[364961742,1749357048939,-440.0,0.00019726,2]
[364961744,1749357048948,-483.95,0.00019726,2]
[364961746,1749357048957,-440.0,0.00019726,2]
[364961748,1749357048967,-440.0,0.00019726,2]
[364961751,1749357048977,-483.66,0.00019726,2]
[364961753,1749357048987,-440.0,0.00019726,2]
[364961755,1749357048996,-440.0,0.00019726,2]
[364961757,1749357049006,-441.25698762,0.00019726,2]
[364961759,1749357049015,-440.0,0.00019726,2]
[364961761,1749357049025,-440.0,0.00019726,2]
[364961763,1749357049034,-1000.62,0.00019726,2]
[364961765,1749357049044,-440.0,0.00019726,2]
[364961767,1749357049053,-547.69947186,0.00019726,2]
[364961769,1749357049063,-1484.13,0.00019726,2]
[364961771,1749357049072,-440.0,0.00019726,2]
[364961773,1749357049081,-441.7,0.00019726,2]
[364961774,1749357049090,-440.0,0.00019726,2]
[364961776,1749357049100,-440.0,0.00019726,2]
[364961779,1749357049109,-1372.19,0.00019726,2]
[364961780,1749357049119,-307.75104844,0.00019726,2]
[364961782,1749357049128,-440.0,0.00019726,2]
[364961784,1749357049139,-440.0,0.00019726,2]
[364961786,1749357049148,-440.0,0.00019726,2]
[364961788,1749357049157,-1533.0,0.00019735,2]
[364961790,1749357049167,-9125.2093432,0.0002,2]
[364961792,1749357049176,-161.6437311,0.0002,4]
[364961794,1749357049186,-2000.0,0.0002,2]
[364961796,1749357049196,-440.0,0.0002,2]
[364961798,1749357049205,-440.0,0.0002,2]
[364961800,1749357049214,-452.60677812,0.0002,2]
[364961802,1749357049224,-440.0,0.0002,2]
[364961804,1749357049234,-440.0,0.0002,2]
[364961806,1749357049243,-448.58360305,0.0002,2]
[364961808,1749357049253,-440.0,0.0002,2]
[364961811,1749357049262,-281.17561266,0.0002,2]
[364961813,1749357049272,-440.0,0.0002,2]
[364961815,1749357049281,-319.38922886,0.0002,2]
[364961816,1749357049291,-440.0,0.0002,2]
[364961818,1749357049300,-440.0,0.0002,2]
[364961821,1749357049310,-440.0,0.0002,2]
[364961823,1749357049319,-440.0,0.0002,2]
[364961825,1749357049329,-449.25558266,0.0002,2]
[364961827,1749357049338,-151.66802904,0.0002,2]
[364961829,1749357049348,-515.20563715,0.0002,2]
[364961831,1749357049358,-440.0,0.0002,2]
[364961833,1749357049368,-440.0,0.0002,2]
[364961835,1749357049378,-368.64871821,0.0002,2]
[364961837,1749357049387,-440.0,0.0002,2]
[364961839,1749357049396,-440.0,0.0002,2]
[364961841,1749357049407,-440.0,0.0002,2]
[364961843,1749357049416,-415.88707755,0.0002,2]
[364961845,1749357049426,-440.0,0.0002,2]
[364961847,1749357049436,-431.00597498,0.0002,2]
[364961849,1749357049445,-508.91780302,0.0002,2]
[364961851,1749357049455,-440.0,0.0002,2]
[364961853,1749357049464,-440.0,0.0002,2]
[364961855,1749357049473,-440.0,0.0002,2]
[364961857,1749357049483,-301.49394683,0.0002,2]
[364961859,1749357049492,-440.0,0.0002,2]
[364961861,1749357049503,-585.79,0.0002,2]
[364961863,1749357049512,-440.0,0.0002,2]
[364961865,1749357049521,-440.0,0.0002,2]
[364961867,1749357049531,-455.40794635,0.0002,2]
[364961869,1749357049540,-440.0,0.0002,2]
[364961871,1749357049550,-440.0,0.0002,2]
[364961873,1749357049559,-440.0,0.0002,2]
[364961875,1749357049568,-440.0,0.0002,2]
[364961877,1749357049578,-440.0,0.0002,2]
[364961879,1749357049587,-440.46754727,0.0002,2]
[364961881,1749357049597,-440.0,0.0002,2]
[364961883,1749357049606,-440.0,0.0002,2]
[364961885,1749357049616,-1477.39,0.0002,2]
[364961887,1749357049626,-150.15399545,0.0002,2]
[364961889,1749357049636,-440.0,0.0002,2]
[364961891,1749357049646,-1507.17,0.0002,2]
[364961893,1749357049656,-556.4,0.0002,2]
[364961895,1749357049666,-440.0,0.0002,2]
[364961897,1749357049676,-503.8,0.0002,2]
[364961899,1749357049686,-440.0,0.0002,2]
[364961901,1749357049696,-440.0,0.0002,2]
[364961903,1749357049705,-440.0,0.0002,2]
[364961905,1749357049716,-589.89,0.0002,2]
[364961907,1749357049730,-185.00563018,0.0002,4]
[364961909,1749357049739,-440.0,0.0002,2]
[364961912,1749357049750,-468.69650202,0.0002,2]
[364961914,1749357049760,-440.0,0.0002,2]
[364961916,1749357049769,-586.93,0.0002,2]
[364961918,1749357049779,-450.4780944,0.0002,2]
[364961920,1749357049788,-440.0,0.0002,2]
[364961922,1749357049798,-440.0,0.0002,2]
[364961924,1749357049807,-440.0,0.0002,2]
[364961926,1749357049817,-440.0,0.0002,2]
[364961928,1749357049827,-440.0,0.0002,2]
[364961930,1749357049837,-1039.1,0.0002,2]
[364961932,1749357049847,-436.60818359,0.0002,2]
[364961944,1749357049950,-440.0,0.0002,2]
[364961946,1749357049961,-440.0,0.0002,2]
[364961949,1749357049971,-440.0,0.0002,2]
[364961951,1749357049983,-440.0,0.0002,2]
[364961953,1749357049992,-440.0,0.0002,2]
[364961955,1749357050003,-440.0,0.0002,2]
[364961957,1749357050012,-440.0,0.0002,2]
[364961959,1749357050021,-440.0,0.0002,2]
[364961961,1749357050031,-440.0,0.0002,2]
[364961963,1749357050040,-440.0,0.0002,2]
[364961965,1749357050050,-440.0,0.0002,2]
[364961967,1749357050060,-662.36,0.0002,2]
[364961969,1749357050070,-440.0,0.0002,2]
[364961971,1749357050080,-440.0,0.0002,2]
[364961973,1749357050089,-440.0,0.0002,2]
[364961975,1749357050099,-440.0,0.0002,2]
[364961977,1749357050109,-440.0,0.0002,2]
[364961979,1749357050119,-440.0,0.0002,2]
[364961981,1749357050128,-440.0,0.0002,2]
[364961983,1749357050138,-406.89188957,0.0002,2]
[364961985,1749357050147,-583.1,0.0002,2]
[364961987,1749357050157,-440.0,0.0002,2]
[364961989,1749357050166,-440.0,0.0002,2]
[364961991,1749357050176,-440.0,0.0002,2]
[364961993,1749357050185,-440.0,0.0002,2]
[364961995,1749357050195,-3144.93,0.0002,2]
[364961997,1749357050204,-440.0,0.0002,2]
[364961999,1749357050214,-282.81605335,0.0002,2]
[364962001,1749357050223,-440.0,0.0002,2]
[364962003,1749357050233,-984.22,0.0002,2]
[364962005,1749357050243,-846.87,0.0002,2]
[364962007,1749357050254,-440.0,0.0002,2]
[364962009,1749357050263,-350.0,0.0002,2]
[364962011,1749357050272,-440.0,0.0002,2]
[364962013,1749357050282,-440.0,0.0002,2]
[364962015,1749357050291,-528.69,0.0002,2]
[364962017,1749357050300,-440.0,0.0002,2]
[364962019,1749357050310,-440.0,0.0002,2]
[364962021,1749357050319,-440.0,0.0002,2]
[364962023,1749357050329,-440.0,0.0002,2]
[364962024,1749357050338,-483.95,0.0002,2]
[364962025,1749357050348,-440.0,0.0002,2]
[364962026,1749357050358,-440.0,0.0002,2]
[364962027,1749357050367,-483.66,0.0002,2]
[364962028,1749357050377,-558.39994239,0.0002,2]
[364962029,1749357050387,-440.0,0.0002,2]
[364962030,1749357050397,-440.0,0.0002,2]
[364962031,1749357050407,-440.0,0.0002,2]
[364962032,1749357050417,-228.98046612,0.0002,4]
[364962033,1749357050426,-1000.62,0.0002,2]
[364962034,1749357050436,-440.0,0.0002,2]
[364962035,1749357050446,-1484.13,0.0002,2]
[364962036,1749357050456,-440.0,0.0002,2]
[364962037,1749357050466,-441.7,0.0002,2]
[364962038,1749357050475,-440.0,0.0002,2]
[364962039,1749357050485,-1372.19,0.0002,2]
[364962040,1749357050494,-440.0,0.0002,2]
[364962041,1749357050505,-440.0,0.0002,2]
[364962042,1749357050514,-440.0,0.0002,2]
[364962043,1749357050524,-513.51425572,0.00020021,2]
[364962044,1749357050533,-337.05039477,0.00020021,2]
[364962045,1749357050543,-1005.57243064,0.00020021,2]
[364962046,1749357050553,-513.9240945,0.00020021,2]
[364962047,1749357050562,-507.82398404,0.00020021,2]
[364962048,1749357050572,-1000.0,0.00020021,2]
[364962049,1749357050582,-484.31702007,0.00020024,2]
[364962050,1749357050591,-1381.78,0.00020038,2]
[364962051,1749357050600,-165.291,0.00020187,2]
[364962052,1749357050610,-179.21022083,0.00020187,2]
[364962053,1749357050619,-296.323811,0.00020187,2]
[364962054,1749357050629,-1500.0,0.00020268,2]
[364962055,1749357050638,-200.03491729,0.00020273,2]
[364962056,1749357050647,-361.60101797,0.00020273,2]
[364962057,1749357050656,-440.0,0.00020273,2]
[364962058,1749357050666,-440.0,0.00020273,2]
[364962059,1749357050676,-440.0,0.00020273,2]
[364962060,1749357050685,-246.25723124,0.00020273,2]
[364962061,1749357050694,-415.98574104,0.00020273,2]
[364962062,1749357050704,-440.0,0.00020273,2]
[364962063,1749357050713,-440.0,0.00020273,2]
[364962064,1749357050726,-440.0,0.00020273,2]
[364962065,1749357050736,-440.0,0.00020273,2]
[364962066,1749357050746,-440.0,0.00020273,2]
[364962067,1749357050756,-440.0,0.00020273,2]
[364962068,1749357050765,-419.31169848,0.00020273,2]
[364962069,1749357050774,-216.02618579,0.00020273,2]
[364962071,1749357050784,-251.88938548,0.00020273,2]
[364962073,1749357050794,-440.0,0.00020273,2]
[364962075,1749357050803,-440.0,0.00020273,2]
[364962077,1749357050812,-440.0,0.00020273,2]
[364962079,1749357050821,-494.31,0.00020273,2]
[364962081,1749357050830,-585.79,0.00020273,2]
[364962083,1749357050839,-440.0,0.00020273,2]
[364962085,1749357050849,-440.0,0.00020273,2]
[364962087,1749357050858,-440.0,0.00020273,2]
[364962089,1749357050867,-440.0,0.00020273,2]
[364962091,1749357050878,-440.0,0.00020273,2]
[364962093,1749357050888,-462.2042487,0.00020273,2]
[364962095,1749357050898,-440.0,0.00020273,2]
[364962097,1749357050907,-440.0,0.00020273,2]
[364962099,1749357050916,-440.0,0.00020273,2]
[364962101,1749357050926,-1477.39,0.00020273,2]
[364962103,1749357050935,-440.0,0.00020273,2]
[364962104,1749357050944,-1507.17,0.00020273,2]
[364962106,1749357050954,-556.4,0.00020273,2]
[364962108,1749357050963,-440.0,0.00020273,2]
[364962110,1749357050972,-503.8,0.00020273,2]
[364962111,1749357050982,-447.09445264,0.00020273,2]
[364962112,1749357050992,-440.0,0.00020273,2]
[364962113,1749357051002,-440.0,0.00020273,2]
[364962114,1749357051012,-589.89,0.00020273,2]
[364962115,1749357051021,-440.0,0.00020273,2]
[364962116,1749357051031,-440.0,0.00020273,2]
[364962117,1749357051042,-586.93,0.00020273,2]
[364962118,1749357051051,-440.0,0.00020273,2]
[364962119,1749357051061,-440.0,0.00020273,2]
[364962120,1749357051070,-440.0,0.00020273,2]
[364962121,1749357051080,-440.0,0.00020273,2]
[364962122,1749357051090,-461.35879173,0.00020273,2]
[364962123,1749357051100,-1039.1,0.00020273,2]
[364962124,1749357051110,-440.0,0.00020273,2]
[364962125,1749357051120,-440.0,0.00020273,2]
[364962126,1749357051130,-440.0,0.00020273,2]
[364962127,1749357051140,-440.0,0.00020273,2]
[364962129,1749357051150,-348.42833062,0.00020273,2]
[364962131,1749357051159,-440.0,0.00020273,2]
[364962132,1749357051168,-440.0,0.00020273,2]
[364962134,1749357051178,-440.0,0.00020273,2]
[364962135,1749357051187,-440.0,0.00020273,2]
[364962137,1749357051199,-440.0,0.00020273,2]
[364962139,1749357051208,-440.0,0.00020273,2]
[364962141,1749357051217,-662.36,0.00020273,2]
[364962142,1749357051227,-440.0,0.00020273,2]
[364962144,1749357051236,-440.0,0.00020273,2]
[364962146,1749357051248,-440.0,0.00020273,2]
[364962149,1749357051258,-440.0,0.00020273,2]
[364962151,1749357051268,-440.0,0.00020273,2]
[364962152,1749357051277,-311.89894072,0.00020273,2]
[364962154,1749357051287,-440.0,0.00020273,2]
[364962156,1749357051297,-583.1,0.00020273,2]
[364962158,1749357051306,-440.0,0.00020273,2]
[364962160,1749357051316,-440.0,0.00020273,2]
[364962162,1749357051331,-440.0,0.00020273,2]
[364962164,1749357051351,-440.0,0.00020273,2]
[364962166,1749357051362,-3144.93,0.00020273,2]
[364962168,1749357051372,-440.0,0.00020273,2]
[364962170,1749357051382,-440.0,0.00020273,2]
[364962173,1749357051392,-984.22,0.00020273,2]
[364962174,1749357051401,-846.87,0.00020273,2]
[364962176,1749357051411,-440.0,0.00020273,2]
[364962178,1749357051421,-350.0,0.00020273,2]
[364962180,1749357051430,-440.0,0.00020273,2]
[364962182,1749357051440,-440.0,0.00020273,2]
[364962184,1749357051450,-528.69,0.00020273,2]
[364962187,1749357051460,-440.0,0.00020273,2]
[364962188,1749357051469,-440.0,0.00020273,2]
[364962191,1749357051480,-449.09195131,0.00020273,2]
[364962192,1749357051489,-440.0,0.00020273,2]
[364962194,1749357051499,-483.95,0.00020273,2]
[364962197,1749357051508,-416.57699151,0.00020273,2]
[364962198,1749357051518,-440.0,0.00020273,2]
[364962200,1749357051527,-483.66,0.00020273,2]
[364962203,1749357051537,-440.0,0.00020273,2]
[364962204,1749357051546,-440.0,0.00020273,2]
[364962207,1749357051556,-440.0,0.00020273,2]
[364962208,1749357051565,-1000.62,0.00020273,2]
[364962210,1749357051575,-440.0,0.00020273,2]
[364962212,1749357051585,-1484.13,0.00020273,2]
[364962214,1749357051595,-440.0,0.00020273,2]
[364962216,1749357051605,-441.7,0.00020273,2]
[364962218,1749357051615,-440.0,0.00020273,2]
[364962220,1749357051626,-1372.19,0.00020273,2]
[364962222,1749357051636,-440.0,0.00020273,2]
[364962224,1749357051646,-440.0,0.00020273,2]
[364962226,1749357051656,-440.0,0.00020273,2]
[364962228,1749357051666,-362.64169839,0.00020304,2]
[364962230,1749357051676,-500.0,0.00020318,2]
[364962232,1749357051687,-213.05153702,0.00020383,2]
[364962234,1749357051699,-160.0,0.00020383,2]
[364962236,1749357051709,-160.0,0.00020383,2]
[364962238,1749357051718,-423.98131849,0.00020402,2]
[364962240,1749357051728,-160.0,0.00020402,2]
[364962250,1749357051738,-160.0,0.00020402,2]
[364962253,1749357051832,-160.0,0.00020402,2]
[364962255,1749357051841,-160.0,0.00020402,2]
[364962257,1749357051851,-834.62475315,0.00020417,2]
[364962259,1749357051860,-160.0,0.00020417,2]
[364962261,1749357051870,-865.38,0.00020538,3]
[364962263,1749357051880,-432.68,0.00020538,3]
[364962265,1749357051889,-169.2,0.00020538,30]
[364962266,1749357051899,-440.0,0.00020547,2]
[364962268,1749357051909,-440.0,0.00020547,2]
[364962270,1749357051919,-440.0,0.00020547,2]
[364962272,1749357051929,-507.56291794,0.00020547,2]
[364962274,1749357051938,-440.0,0.00020547,2]
[364962276,1749357051947,-440.0,0.00020547,2]
[364962278,1749357051957,-397.34155564,0.00020547,2]
[364962280,1749357051967,-440.0,0.00020547,2]
[364962282,1749357051977,-440.0,0.00020547,2]
[364962284,1749357051987,-440.0,0.00020547,2]
[364962286,1749357051998,-440.0,0.00020547,2]
[364962288,1749357052009,-440.0,0.00020547,2]
[364962290,1749357052019,-440.0,0.00020547,2]
[364962292,1749357052030,-585.79,0.00020547,2]
[364962294,1749357052040,-189.05792954,0.00020547,2]
[364962296,1749357052051,-440.0,0.00020547,2]
[364962298,1749357052060,-440.0,0.00020547,2]
[364962300,1749357052070,-440.0,0.00020547,2]
[364962302,1749357052079,-440.0,0.00020547,2]
[364962304,1749357052089,-440.0,0.00020547,2]
[364962306,1749357052099,-440.0,0.00020547,2]
[364962308,1749357052109,-440.0,0.00020547,2]
[364962310,1749357052118,-1477.39,0.00020547,2]
[364962312,1749357052128,-440.0,0.00020547,2]
[364962314,1749357052138,-1507.17,0.00020547,2]
[364962316,1749357052148,-556.4,0.00020547,2]
[364962318,1749357052159,-440.0,0.00020547,2]
[364962320,1749357052170,-503.8,0.00020547,2]
[364962322,1749357052180,-440.0,0.00020547,2]
[364962324,1749357052190,-440.0,0.00020547,2]
[364962326,1749357052200,-589.89,0.00020547,2]
[364962328,1749357052210,-440.0,0.00020547,2]
[364962330,1749357052220,-440.0,0.00020547,2]
[364962332,1749357052230,-586.93,0.00020547,2]
[364962334,1749357052239,-541.28196013,0.00020547,2]
[364962336,1749357052249,-440.0,0.00020547,2]
[364962338,1749357052259,-440.0,0.00020547,2]
[364962340,1749357052268,-440.0,0.00020547,2]
[364962343,1749357052279,-1039.1,0.00020547,2]
[364962344,1749357052288,-440.0,0.00020547,2]
[364962346,1749357052298,-440.0,0.00020547,2]
[364962348,1749357052308,-440.0,0.00020547,2]
[364962350,1749357052318,-440.0,0.00020547,2]
[364962352,1749357052329,-460.39736231,0.00020547,2]
[364962354,1749357052338,-440.0,0.00020547,2]
[364962356,1749357052349,-440.0,0.00020547,2]
[364962359,1749357052359,-440.0,0.00020547,2]
[364962360,1749357052370,-440.0,0.00020547,2]
[364962362,1749357052380,-381.02993817,0.00020547,2]
[364962364,1749357052390,-662.36,0.00020547,2]
[364962366,1749357052400,-440.0,0.00020547,2]
[364962368,1749357052409,-410.04713949,0.00020547,2]
[364962371,1749357052419,-440.0,0.00020547,2]
[364962373,1749357052431,-454.93794282,0.00020547,2]
[364962374,1749357052440,-440.0,0.00020547,2]
[364962377,1749357052450,-440.0,0.00020547,2]
[364962378,1749357052459,-583.1,0.00020547,2]
[364962380,1749357052468,-440.0,0.00020547,2]
[364962382,1749357052478,-440.0,0.00020547,2]
[364962384,1749357052487,-440.0,0.00020547,2]
[364962386,1749357052497,-440.0,0.00020547,2]
[364962388,1749357052507,-3144.93,0.00020547,2]
[364962390,1749357052516,-440.0,0.00020547,2]
[364962392,1749357052526,-562.50849993,0.00020547,2]
[364962394,1749357052536,-984.22,0.00020547,2]
[364962396,1749357052546,-846.87,0.00020547,2]
[364962398,1749357052555,-440.0,0.00020547,2]
[364962400,1749357052566,-211.67883138,0.00020547,2]
[364962402,1749357052576,-467.60350749,0.00020547,2]
[364962404,1749357052586,-210.11780698,0.00020547,2]
[364962406,1749357052595,-528.69,0.00020547,2]
[364962408,1749357052606,-440.0,0.00020547,2]
[364962410,1749357052615,-440.0,0.00020547,2]
[364962411,1749357052625,-440.0,0.00020547,2]
[364962413,1749357052634,-483.95,0.00020547,2]
[364962414,1749357052644,-440.0,0.00020547,2]
[364962415,1749357052654,-483.66,0.00020547,2]
[364962417,1749357052663,-440.0,0.00020547,2]
[364962419,1749357052673,-440.0,0.00020547,2]
[364962421,1749357052682,-440.0,0.00020547,2]
[364962423,1749357052692,-1000.62,0.00020547,2]
[364962425,1749357052702,-440.0,0.00020547,2]
[364962427,1749357052711,-1484.13,0.00020547,2]
[364962429,1749357052722,-440.0,0.00020547,2]
[364962431,1749357052734,-441.7,0.00020547,2]
[364962433,1749357052743,-440.0,0.00020547,2]
[364962434,1749357052753,-1372.19,0.00020547,2]
[364962437,1749357052763,-440.0,0.00020547,2]
[364962438,1749357052773,-440.0,0.00020547,2]
[364962440,1749357052783,-440.0,0.00020547,2]
[364962442,1749357052793,-1522.26540638,0.00020568,2]
[364962444,1749357052805,-1086.28,0.000206,2]
[364962446,1749357052816,-229.56495552,0.00020628,2]
[364962448,1749357052826,-842.5625,0.00020628,2]
[364962450,1749357052836,-1579.18,0.0002078,2]
[364962452,1749357052846,-1000.0,0.000208,4]
[364962454,1749357052855,-1044.23233376,0.00020816,2]
[364962456,1749357052865,-440.0,0.00020821,2]
[364962458,1749357052875,-440.0,0.00020821,2]
[364962460,1749357052885,-157.4289194,0.00020821,2]
[364962462,1749357052895,-159.83907377,0.00020821,2]
[364962464,1749357052904,-440.0,0.00020821,2]
[364962466,1749357052914,-440.0,0.00020821,2]
[364962468,1749357052924,-440.0,0.00020821,2]
[364962470,1749357052933,-529.51490891,0.00020821,2]
[364962472,1749357052943,-440.0,0.00020821,2]
[364962474,1749357052953,-314.39118639,0.00020821,2]
[364962476,1749357052963,-440.0,0.00020821,2]
[364962478,1749357052972,-585.79,0.00020821,2]
[364962480,1749357052982,-454.4415338,0.00020821,2]
[364962482,1749357052991,-440.0,0.00020821,2]
[364962484,1749357053002,-440.0,0.00020821,2]
[364962486,1749357053016,-440.0,0.00020821,2]
[364962488,1749357053027,-440.0,0.00020821,2]
[364962490,1749357053037,-440.0,0.00020821,2]
[364962492,1749357053047,-440.0,0.00020821,2]
[364962494,1749357053058,-1477.39,0.00020821,2]
[364962496,1749357053067,-440.0,0.00020821,2]
[364962498,1749357053077,-1507.17,0.00020821,2]
[364962500,1749357053086,-556.4,0.00020821,2]
[364962502,1749357053095,-440.0,0.00020821,2]
[364962504,1749357053105,-503.8,0.00020821,2]
[364962506,1749357053115,-440.0,0.00020821,2]
[364962508,1749357053126,-440.0,0.00020821,2]
[364962510,1749357053135,-589.89,0.00020821,2]
[364962512,1749357053145,-440.0,0.00020821,2]
[364962514,1749357053154,-440.0,0.00020821,2]
[364962515,1749357053164,-586.93,0.00020821,2]
[364962517,1749357053174,-440.0,0.00020821,2]
[364962519,1749357053184,-440.0,0.00020821,2]
[364962521,1749357053193,-440.0,0.00020821,2]
[364962523,1749357053203,-1039.1,0.00020821,2]
[364962525,1749357053214,-440.0,0.00020821,2]
[364962527,1749357053224,-440.0,0.00020821,2]
[364962529,1749357053234,-440.0,0.00020821,2]
[364962531,1749357053244,-440.0,0.00020821,2]
[364962533,1749357053254,-440.0,0.00020821,2]
[364962535,1749357053263,-473.93842239,0.00020821,2]
[364962537,1749357053273,-440.0,0.00020821,2]
[364962539,1749357053283,-440.0,0.00020821,2]
[364962541,1749357053293,-662.36,0.00020821,2]
[364962543,1749357053303,-440.0,0.00020821,2]
[364962545,1749357053313,-440.0,0.00020821,2]
[364962547,1749357053323,-440.0,0.00020821,2]
[364962548,1749357053333,-440.0,0.00020821,2]
[364962549,1749357053346,-583.1,0.00020821,2]
[364962550,1749357053357,-440.0,0.00020821,2]
[364962551,1749357053367,-440.0,0.00020821,2]
[364962552,1749357053379,-440.0,0.00020821,2]
[364962553,1749357053388,-440.0,0.00020821,2]
[364962554,1749357053398,-3144.93,0.00020821,2]
[364962555,1749357053408,-440.0,0.00020821,2]
[364962556,1749357053418,-984.22,0.00020821,2]
[364962557,1749357053428,-846.87,0.00020821,2]